bitfinex/quotes_ETHUSD_20250210
["timestamp","ask_amount","ask_price","bid_price","bid_amount"]
[1739208876938,3.0,2676.4,2675.9,7.47391]
[1739208877135,3.0,2676.4,2675.9,3.73695]
[1739208877312,3.0,2676.4,2675.8,0.0162883]
[1739208877517,3.73667,2676.2,2675.8,0.0162883]
[1739208877716,3.73647,2676.4,2675.8,0.0162883]
[1739208878140,3.7367,2676.2,2675.8,0.0162883]
[1739208878441,3.73643,2676.4,2675.8,3.7533483]
[1739208878820,3.73637,2676.4,2675.9,3.73696]
[1739208879643,3.0,2676.5,2676.0,3.74441]
[1739208879819,3.0,2676.5,2675.9,3.73696]
[1739208880004,3.0,2676.5,2676.0,3.73691]
[1739208880425,3.73636,2676.4,2675.8,0.0162883]
[1739208880626,0.7899,2676.1,2675.8,0.0162883]
[1739208881014,4.52669,2676.1,2675.8,0.0162883]
[1739208881953,0.7899,2676.1,2675.8,3.7533783]
[1739208882140,7.52641,2676.3,2675.8,0.0162883]
[1739208882455,0.7899,2676.3,2675.8,3.7533583]
[1739208882666,3.0,2676.4,2675.8,7.4904683]
[1739208882834,3.0,2676.4,2675.9,3.73694]
[1739208883241,0.7899,2676.6,2675.8,0.0162883]
[1739208883446,3.73684,2676.1,2675.8,0.0162883]
[1739208884519,4.52674,2676.1,2675.8,0.0162883]
[1739208885060,3.73817,2675.1,2675.0,0.1468636]
[1739208885245,6.73817,2675.1,2675.0,0.1468636]
[1739208885451,3.73817,2675.1,2675.0,0.1468636]
[1739208885964,3.73804,2675.2,2675.0,0.1468636]
[1739208886145,3.73817,2675.1,2675.0,0.1468636]
[1739208886552,3.73804,2675.2,2675.0,0.1468636]
[1739208886749,3.0,2675.2,2675.0,0.1468636]
[1739208886919,0.7899,2675.3,2675.0,0.1468636]
[1739208888454,6.73764,2675.5,2675.0,3.8851636]
[1739208888758,3.0,2675.5,2675.0,3.8851636]
[1739208888964,4.55496,2675.6,2675.0,3.8851636]
[1739208888965,0.8174,2675.6,2675.0,3.8851636]
[1739208889274,3.0,2675.7,2675.3,0.7534]
[1739208889632,3.0,2675.7,2675.2,3.73803]
[1739208889871,6.73747,2675.7,2675.0,3.8850536]
[1739208890066,6.73747,2675.7,2675.2,3.73802]
[1739208890576,3.73805,2675.2,2675.0,0.1468636]
[1739208891362,3.73798,2675.3,2675.0,0.1468636]
[1739208892279,3.0,2675.3,2675.0,0.1468636]
[1739208892442,0.8174,2675.4,2675.0,0.1468636]
[1739208892762,0.8174,2675.4,2675.0,3.8851336]
[1739208892954,7.55519,2675.4,2675.0,0.1468636]
[1739208893355,3.73743,2675.7,2675.0,0.1468636]
[1739208893539,3.73743,2675.7,2675.1,0.7534]
[1739208893739,3.0,2675.6,2675.2,3.73791]
[1739208893940,3.0,2675.7,2675.3,3.73789]
[1739208894335,0.8174,2675.8,2675.3,3.73789]
[1739208894537,7.5546,2675.8,2675.3,3.73789]
[1739208894736,3.8174,2675.8,2675.3,3.73789]
[1739208895365,7.5547,2675.8,2675.2,7.47586]
[1739208895568,3.73733,2675.7,2675.1,3.73814]
[1739208895753,3.73749,2675.6,2675.0,3.8850936]
[1739208896155,6.73817,2675.1,2675.0,0.1468636]
[1739208896355,7.55557,2675.1,2675.0,0.1468636]
[1739208898074,8.10557,2675.1,2675.0,0.1468636]
[1739208899759,7.55557,2675.1,2675.0,0.1468636]
[1739208899950,3.8174,2675.1,2675.0,0.1468636]
[1739208900273,3.73784,2675.4,2675.3,3.73789]
[1739208900274,0.8174,2675.4,2675.3,3.73789]
[1739208900463,0.8174,2675.4,2675.0,0.1468636]
[1739208900660,3.73769,2675.5,2675.0,0.1468636]
[1739208900869,3.0,2675.4,2675.0,0.1468636]
[1739208901444,3.0,2675.5,2675.0,3.8850636]
[1739208901745,3.73777,2675.4,2675.0,0.1468636]
[1739208902475,3.0,2675.6,2675.2,3.73794]
[1739208902654,3.73752,2675.6,2675.0,3.8850736]
[1739208902978,3.0,2675.5,2675.0,3.8851636]
[1739208903375,0.8265,2675.7,2675.0,0.1468636]
[1739208903555,3.73784,2675.4,2675.0,0.1468636]
[1739208904801,0.8265,2675.7,2675.0,0.1468636]
[1739208904967,3.73588,2676.8,2676.2,3.73663]
[1739208905157,0.8265,2676.7,2676.2,3.73663]
[1739208905360,0.8265,2676.7,2676.2,3.73653]
[1739208905710,0.8265,2676.7,2675.8,0.8024]
[1739208906000,3.73653,2676.3,2675.8,0.8024]
[1739208906491,3.73616,2676.6,2675.8,0.8024]
[1739208906657,3.0,2676.4,2675.8,0.8024]
[1739208906858,6.73649,2676.4,2675.8,4.53957]
[1739208907059,3.0,2676.5,2675.8,4.53957]
[1739208907256,0.8265,2676.7,2676.3,3.73637]
[1739208907593,6.7361,2676.6,2676.1,3.73668]
[1739208907754,3.73546,2677.1,2676.5,3.73621]
[1739208907954,0.8265,2677.3,2676.2,3.54541481]
[1739208908195,3.73548,2677.1,2676.3,0.8024]
[1739208908491,3.73583,2676.8,2676.3,0.8024]
[1739208908652,3.73602,2676.7,2676.3,0.8024]
[1739208908855,3.73613,2676.6,2676.3,0.8024]
[1739208909050,3.73624,2676.5,2676.3,0.8024]
[1739208909357,3.73602,2676.7,2676.3,0.8024]
[1739208909691,3.73572,2676.9,2676.3,0.8024]
[1739208909900,3.0,2676.9,2676.4,3.73624]
[1739208910491,3.73557,2677.0,2676.4,3.73624]
[1739208910695,3.73551,2677.1,2676.4,3.73623]
[1739208910871,3.73516,2677.3,2676.6,3.73597]
[1739208911395,3.0,2677.4,2676.4,3.74377]
[1739208911595,3.7352,2677.3,2676.6,3.73596]
[1739208911801,3.7352,2677.3,2676.6,3.77331683]
[1739208912096,3.7352,2677.3,2676.6,3.77342683]
[1739208912300,3.7352,2677.3,2676.7,0.015]
[1739208912464,3.7352,2677.3,2676.7,3.7508]
[1739208912661,7.47044,2677.3,2676.7,0.015]
[1739208912899,3.8265,2677.6,2676.5,9.5524]
[1739208913195,3.73665,2676.2,2675.8,0.8024]
[1739208913381,3.73629,2676.5,2675.9,3.73696]
[1739208913586,3.73629,2676.5,2676.0,3.73689]
[1739208914173,0.8265,2676.9,2675.8,0.8024]
[1739208914174,3.0,2676.8,2675.8,0.8024]
[1739208914364,0.8265,2676.9,2675.8,0.8024]
[1739208914365,3.73706,2675.9,2675.8,0.8024]
[1739208915460,3.73673,2676.2,2675.8,0.8024]
[1739208915701,3.0,2676.3,2675.8,0.8024]
[1739208915901,3.73641,2676.4,2675.8,0.8024]
[1739208916216,3.0,2676.5,2675.8,4.53949]
[1739208916419,3.73615,2676.6,2675.8,4.53949]
[1739208916420,3.73615,2676.6,2676.0,3.73681]
[1739208916773,3.73622,2676.5,2675.8,4.53954]
[1739208916976,3.73622,2676.5,2675.9,3.73704]
[1739208917673,3.73615,2676.6,2675.8,4.53954]
[1739208917873,3.0,2676.8,2675.8,0.8024]
[1739208918073,3.73717,2675.9,2675.3,4.56915]
[1739208918272,3.73717,2675.9,2675.4,3.73772]
[1739208918569,0.7851,2676.4,2675.4,3.73772]
[1739208918570,3.73695,2676.0,2675.4,3.73772]
[1739208918774,3.73708,2675.9,2675.4,0.0075]
[1739208918975,3.73695,2676.0,2675.4,3.74516]
[1739208919217,3.73695,2676.0,2675.5,3.7376]
[1739208919619,3.73666,2676.2,2675.6,3.73744]
[1739208919780,3.73651,2676.3,2675.7,0.8314]
[1739208920114,3.73644,2676.4,2675.8,3.7371]
[1739208920926,3.7365,2676.3,2675.8,3.7371]
[1739208921213,3.73644,2676.4,2675.7,0.8314]
[1739208921214,3.73666,2676.2,2675.7,0.8314]
[1739208921382,3.73678,2676.1,2675.7,0.8314]
[1739208921715,3.7366,2676.3,2675.7,4.56869]
[1739208921916,3.7366,2676.3,2675.7,8.30595]
[1739208922216,3.7366,2676.3,2675.7,4.56866]
[1739208922785,3.73657,2676.3,2675.7,4.56866]
[1739208922985,7.47317,2676.3,2675.7,4.56866]
[1739208923518,3.73683,2676.1,2675.7,0.8314]
[1739208923682,3.73669,2676.2,2675.7,0.8314]
[1739208923883,3.73669,2676.2,2675.7,4.56866]
[1739208924083,3.73669,2676.2,2675.7,4.56872]
[1739208924303,3.73682,2676.1,2675.7,0.8314]
[1739208924619,3.73669,2676.2,2675.7,0.8314]
[1739208925317,3.0,2676.5,2675.8,0.0373704]
[1739208925519,3.0,2676.5,2676.1,0.8314]
[1739208925702,3.73621,2676.6,2676.1,4.56808]
[1739208925903,3.73585,2676.8,2676.1,0.8314]
[1739208926113,0.7851,2677.0,2676.1,0.8314]
[1739208926315,3.73629,2676.5,2676.1,0.8314]
[1739208926744,3.7361,2676.6,2676.1,4.56811]
[1739208927189,3.73601,2676.7,2676.2,0.03736358]
[1739208927390,3.0,2676.9,2676.3,0.015]
[1739208927591,3.73498,2677.4,2676.7,3.73584]
[1739208927839,3.73477,2677.6,2676.9,0.8314]
[1739208928047,3.73468,2677.6,2676.9,4.56698]
[1739208928204,3.73506,2677.4,2676.9,0.8314]
[1739208928607,3.73476,2677.6,2676.9,4.56705]
[1739208928835,3.0,2677.7,2677.1,3.73529]
[1739208929144,3.73416,2678.0,2677.5,0.8314]
[1739208929651,3.73399,2678.1,2677.6,3.73458]
[1739208929791,6.73399,2678.1,2677.6,3.73458]
[1739208929998,3.73399,2678.1,2677.6,3.73458]
[1739208930245,3.73371,2678.3,2677.1,0.7658]
[1739208930442,3.73494,2677.5,2677.1,0.7658]
[1739208931450,3.0,2677.6,2677.1,0.7658]
[1739208931611,6.73475,2677.6,2677.1,0.7658]
[1739208931945,0.7851,2678.4,2677.3,0.0075]
[1739208932109,3.73425,2678.0,2677.4,3.73488]
[1739208932314,3.73425,2678.0,2677.5,0.09215552]
[1739208932517,3.73391,2678.2,2677.7,0.7658]
[1739208932709,3.73335,2678.6,2677.8,3.83475128]
[1739208932899,3.73358,2678.4,2677.8,7.56907128]
[1739208933103,3.73358,2678.4,2677.8,3.83475128]
[1739208933522,3.73383,2678.3,2677.8,0.09294128]
[1739208933711,3.73358,2678.4,2677.7,0.7658]
[1739208933912,3.73358,2678.4,2677.8,3.82726546]
[1739208934109,7.46724,2678.4,2677.8,3.82726546]
[1739208934639,3.73358,2678.4,2677.9,3.73425]
[1739208935143,0.7617,2679.3,2678.1,0.7658]
[1739208935436,3.73248,2679.2,2678.7,0.7658]
[1739208935826,3.0,2679.1,2678.8,0.09156445]
[1739208935998,3.73265,2679.1,2678.8,0.09156445]
[1739208936202,3.73265,2679.1,2678.7,0.7658]
[1739208936519,3.73265,2679.1,2678.8,0.09156445]
[1739208936720,3.73282,2679.0,2678.7,0.7658]
[1739208937032,3.73282,2679.0,2678.8,0.09156445]
[1739208937531,3.73282,2679.0,2678.9,0.09144538]
[1739208937847,3.0,2679.3,2678.7,0.7658]
[1739208937848,3.73252,2679.2,2678.7,0.7658]
[1739208938134,3.73262,2679.1,2678.8,0.09156445]
[1739208938339,3.73262,2679.1,2678.7,0.7658]
[1739208938659,3.73262,2679.1,2678.8,0.09156445]
[1739208938933,3.73284,2679.0,2678.7,0.7658]
[1739208939137,3.73284,2679.0,2678.8,0.09137375]
[1739208939332,3.73284,2679.0,2678.7,0.7658]
[1739208939535,3.73288,2678.9,2678.8,0.09137375]
[1739208939748,3.73323,2678.7,2678.4,0.7658]
[1739208939917,3.73323,2678.7,2678.5,0.09173102]
[1739208940458,3.73329,2678.6,2678.5,0.09173102]
[1739208940944,3.73323,2678.7,2678.0,0.7658]
[1739208941105,7.46649,2678.7,2678.1,0.09220752]
[1739208941434,3.0,2678.8,2678.2,3.73377]
[1739208941857,3.0,2678.8,2678.3,0.09196925]
[1739208942055,3.0,2678.8,2678.3,3.82558925]
[1739208942229,3.73296,2678.9,2678.3,7.46724]
[1739208942434,3.73266,2679.1,2678.6,0.7658]
[1739208942659,0.7617,2679.4,2678.6,4.49897]
[1739208942957,3.73259,2679.1,2678.7,0.09149283]
[1739208944055,3.73274,2679.0,2678.7,0.09149283]
[1739208944228,3.73259,2679.1,2678.7,0.09149283]
[1739208945117,7.46528,2679.1,2678.7,0.09149283]
[1739208945324,3.73259,2679.1,2678.7,0.09149283]
[1739208947045,3.0,2679.2,2678.7,0.09149283]
[1739208947244,6.73241,2679.3,2678.7,3.82462283]
[1739208947456,10.46482,2679.3,2678.7,3.82462283]
[1739208947779,3.73274,2679.0,2678.7,0.09149283]
[1739208948446,3.0,2679.1,2678.7,0.09149283]
[1739208948653,6.73267,2679.1,2678.7,0.09149283]
[1739208949167,3.73299,2678.9,2678.7,0.09149283]
[1739208949760,3.73301,2678.8,2678.7,0.09149283]
[1739208950472,3.7328,2679.0,2678.7,0.09149283]
[1739208950634,3.73264,2679.1,2678.7,0.09149283]
[1739208950833,3.73273,2679.0,2678.7,0.09149283]
[1739208951137,3.73264,2679.1,2678.7,0.09149283]
[1739208951451,3.73316,2678.7,2678.3,0.8104]
[1739208951644,3.73288,2678.9,2678.3,4.54399]
[1739208951972,3.73288,2678.9,2678.4,3.73347]
[1739208952486,3.73288,2678.9,2678.5,3.73342]
[1739208952640,3.73269,2679.1,2678.5,3.73343]
[1739208953167,3.73267,2679.1,2678.6,3.73326]
[1739208953953,3.73273,2679.0,2678.4,3.73348]
[1739208954473,3.73297,2678.9,2678.3,4.544]
[1739208954679,3.73297,2678.9,2677.9,0.77356302]
[1739208954680,0.7629,2679.1,2677.9,0.8104]
[1739208954992,0.7629,2679.1,2677.9,4.54459]
[1739208954993,3.7336,2678.4,2677.9,4.54459]
[1739208955785,3.7629,2679.1,2678.2,3.73377]
[1739208955940,3.73324,2678.7,2678.2,3.73377]
[1739208956137,7.46649,2678.7,2678.2,3.73377]
[1739208956477,3.73324,2678.7,2678.2,3.73377]
[1739208956684,3.73331,2678.6,2678.2,3.73377]
[1739208956889,3.73344,2678.5,2678.0,3.73402]
[1739208958483,3.73344,2678.5,2678.0,7.46806]
[1739208958670,3.73344,2678.5,2678.0,3.73402]
[1739208959354,3.73344,2678.5,2678.0,7.46808]
[1739208959555,3.73323,2678.7,2678.1,3.73388]
[1739208959906,3.73338,2678.6,2678.1,3.73388]
[1739208960401,3.73323,2678.7,2678.1,3.73388]
[1739208960585,7.49552,2679.1,2678.1,3.73388]
[1739208960586,3.73281,2679.0,2678.1,0.8142]
[1739208960770,3.73254,2679.2,2678.2,0.7992]
[1739208960971,0.8242,2679.3,2678.2,9.5492]
[1739208961169,3.73301,2678.8,2678.3,3.73361]
[1739208961385,3.73345,2678.5,2678.2,9.5492]
[1739208961559,0.8242,2678.8,2678.0,0.7992]
[1739208961757,3.73379,2678.3,2678.0,0.7992]
[1739208962795,3.8242,2678.1,2677.5,0.75171335]
[1739208962987,3.73499,2677.4,2677.0,0.7992]
[1739208963190,3.73477,2677.6,2677.0,0.7992]
[1739208963399,3.73477,2677.6,2677.1,0.09003531]
[1739208963400,3.73484,2677.5,2677.1,0.09003531]
[1739208963571,3.73477,2677.6,2677.1,0.09003531]
[1739208963768,3.8151,2677.8,2677.1,0.09003531]
[1739208964000,3.8151,2677.8,2676.6,0.39030131]
[1739208964001,3.73575,2676.9,2676.3,0.7693]
[1739208964176,3.0,2677.0,2676.4,3.73634]
[1739208964500,3.73577,2676.9,2676.3,0.7693]
[1739208964859,3.73577,2676.9,2676.4,3.73635]
[1739208966400,3.73577,2676.9,2676.3,4.50579]
[1739208966563,3.0,2677.0,2676.4,3.73626]
[1739208967064,6.73553,2677.0,2676.4,3.73626]
[1739208967265,3.73582,2676.8,2676.3,0.7693]
[1739208967598,3.73604,2676.7,2676.3,0.7693]
[1739208967840,3.73627,2676.5,2676.3,0.7693]
[1739208968162,10.47205,2676.7,2676.3,0.7693]
[1739208968499,3.7364,2676.4,2676.1,8.75]
[1739208968696,3.7365,2676.3,2675.7,0.7693]
[1739208968903,3.7364,2676.4,2675.8,3.73717]
[1739208969410,6.73659,2676.3,2675.7,4.50663]
[1739208969566,3.73672,2676.2,2675.7,0.7693]
[1739208970077,3.73672,2676.2,2675.6,3.73739]
[1739208970772,3.73671,2676.2,2675.6,3.73739]
[1739208971096,3.73697,2676.0,2675.5,12.48761]
[1739208971298,3.73653,2676.3,2675.7,3.73732]
[1739208971523,3.73671,2676.2,2675.6,3.73744]
[1739208971702,0.8151,2676.6,2675.5,8.75]
[1739208971907,3.73703,2676.0,2675.5,8.75]
[1739208972105,4.55213,2676.0,2675.5,8.75]
[1739208972285,3.73671,2676.2,2675.6,3.73743]
[1739208972611,3.73679,2676.1,2675.5,12.48758]
[1739208974013,3.73676,2676.2,2675.6,3.73738]
[1739208974218,3.73676,2676.2,2675.7,3.73731]
[1739208974610,3.73612,2676.6,2675.9,0.7693]
[1739208974806,3.73612,2676.6,2676.0,3.73691]
[1739208974992,0.8151,2676.7,2675.9,0.7693]
[1739208974993,3.73643,2676.4,2675.9,0.7693]
[1739208975195,0.8151,2676.7,2675.6,4.53273]
[1739208975404,3.73677,2676.2,2675.6,4.53273]
[1739208975983,3.73702,2676.0,2675.6,0.7953]
[1739208976396,3.73678,2676.1,2675.6,0.7953]
[1739208976593,3.73692,2676.0,2675.6,0.7953]
[1739208976793,3.73714,2675.9,2675.3,13.2831]
[1739208976992,3.73714,2675.9,2675.3,17.0209]
[1739208977809,3.73714,2675.9,2675.4,3.73773]
[1739208978119,3.73692,2676.0,2675.4,3.73773]
[1739208978419,3.7686,2676.2,2675.7,3.73726]
[1739208978420,7.50532,2676.2,2675.7,3.73726]
[1739208978621,7.50532,2676.2,2675.7,7.47452]
[1739208978811,7.50532,2676.2,2675.8,0.09293944]
[1739208979123,3.73706,2675.9,2675.8,0.09293944]
[1739208979331,3.7686,2676.2,2675.3,0.7953]
[1739208979487,3.73706,2675.9,2675.8,0.09294465]
[1739208979816,3.73727,2675.8,2675.3,0.7953]
[1739208980532,7.50677,2675.1,2675.0,3.6e-06]
[1739208981025,8.05677,2675.1,2675.0,3.6e-06]
[1739208984943,8.07177,2675.1,2675.0,3.6e-06]
[1739208985392,3.74025,2673.7,2673.5,0.7953]
[1739208985595,3.74023,2673.7,2673.5,0.7953]
[1739208985806,3.74023,2673.7,2673.6,0.09271352]
[1739208986494,7.50883,2673.7,2673.6,3.52e-06]
[1739208986703,8.05883,2673.7,2673.6,8.39e-06]
[1739208986897,3.74135,2672.9,2672.3,8.75]
[1739208987126,4.50884,2673.7,2672.3,8.75]
[1739208987127,3.74047,2673.5,2672.5,0.83271535]
[1739208987341,3.73995,2673.9,2673.2,3.74072]
[1739208987706,3.74017,2673.7,2673.3,0.08096953]
[1739208987906,3.73968,2674.1,2673.3,0.08096953]
[1739208988148,3.73943,2674.3,2673.4,3.74043]
[1739208988307,3.73913,2674.5,2674.0,0.7953]
[1739208988634,3.73913,2674.5,2674.1,0.08000286]
[1739208988797,3.73887,2674.6,2674.1,0.08000286]
[1739208989707,3.73926,2674.4,2674.1,0.08000286]
[1739208990852,3.73905,2674.5,2674.1,0.08000286]
[1739208992052,3.73916,2674.4,2674.1,0.08000286]
[1739208992543,3.73923,2674.4,2674.1,0.08000286]
[1739208993407,3.73943,2674.2,2674.1,0.08000286]
[1739208994104,6.73943,2674.2,2674.1,0.08000286]
[1739208994507,3.73985,2673.9,2673.8,8.75]
[1739208994706,3.73985,2673.9,2673.3,8.75]
[1739208994921,3.73985,2673.9,2673.3,12.49068]
[1739208995452,3.73873,2674.7,2673.9,0.7953]
[1739208995656,3.73935,2674.3,2673.9,0.7953]
[1739208996445,3.73917,2674.4,2673.9,4.53515]
[1739208996754,10.47786,2674.6,2674.0,3.7397]
[1739208996907,3.73916,2674.4,2673.9,0.7953]
[1739208997650,3.73916,2674.4,2673.9,4.53514]
[1739208998054,3.73854,2674.9,2674.2,0.7953]
[1739208998530,3.73854,2674.9,2674.2,4.53459]
[1739208998531,7.47711,2674.9,2674.2,4.53459]
[1739208998731,0.7686,2675.1,2674.4,3.73914]
[1739208998732,7.4765,2675.1,2674.4,3.73914]
[1739208998944,3.73796,2675.3,2674.7,3.73872]
[1739208999250,7.4748,2675.7,2675.0,3.73821]
[1739208999411,3.73748,2675.6,2674.9,3.73834]
[1739208999607,3.73748,2675.6,2675.0,3.73823]
[1739208999811,3.73748,2675.6,2675.1,3.73817]
[1739209000132,4.50574,2675.9,2675.1,3.73817]
[1739209000334,3.73735,2675.7,2675.1,3.73817]
[1739209000943,3.73735,2675.7,2675.1,3.73808]
[1739209001315,3.73735,2675.7,2675.1,7.47616]
[1739209001668,0.7686,2676.6,2675.9,3.73703]
[1739209002040,3.7369,2676.1,2675.8,0.7953]
[1739209002464,3.73706,2675.9,2675.4,9.5453]
[1739209002688,3.73728,2675.8,2675.4,0.7953]
[1739209002903,3.73728,2675.8,2675.1,0.7953]
[1739209002904,3.73803,2675.2,2675.1,0.7953]
[1739209003107,3.73761,2675.5,2674.6,0.7953]
[1739209003238,3.7386,2674.8,2674.6,0.7953]
[1739209003581,3.7386,2674.8,2674.3,0.7953]
[1739209003935,7.47729,2674.8,2674.3,0.7953]
[1739209004181,3.73884,2674.7,2674.3,0.7953]
[1739209005092,3.73807,2675.2,2674.3,0.7953]
[1739209005093,3.73915,2674.4,2674.3,0.7953]
[1739209005613,3.73915,2674.4,2674.2,8.75]
[1739209005614,3.73901,2674.5,2673.9,0.7866]
[1739209005823,3.73879,2674.7,2674.0,3.73962]
[1739209005985,3.73879,2674.7,2674.1,3.73953]
[1739209006826,3.73911,2674.5,2673.9,0.7866]
[1739209007112,3.73911,2674.5,2674.0,3.73967]
[1739209007684,0.8196,2674.8,2673.9,0.7866]
[1739209007900,3.73971,2674.0,2673.6,0.7866]
[1739209008404,3.0,2674.5,2673.7,0.07975938]
[1739209008600,7.47935,2674.1,2673.7,0.07975938]
[1739209008803,3.0,2674.7,2673.7,0.07975938]
[1739209009026,3.73999,2673.8,2673.7,0.07975938]
[1739209009187,6.73999,2673.8,2673.7,0.07975938]
[1739209009364,3.0,2673.8,2673.0,9.5366]
[1739209009569,3.74013,2673.7,2673.1,3.8185574]
[1739209010118,3.0,2673.6,2673.1,3.8185574]
[1739209010273,3.74013,2673.7,2673.1,0.0776174]
[1739209010274,3.74042,2673.5,2673.1,0.0776174]
[1739209011468,3.74066,2673.4,2673.1,0.0776174]
[1739209011694,3.0,2673.8,2673.1,0.0776174]
[1739209011879,3.74047,2673.5,2673.1,0.0776174]
[1739209012083,3.0,2673.6,2673.1,0.0776174]
[1739209012307,6.74035,2673.6,2673.1,3.8185774]
[1739209012607,3.7405,2673.5,2673.1,0.0776174]
[1739209012901,3.74041,2673.5,2673.1,0.0776174]
[1739209014031,3.0,2673.7,2673.1,3.8185474]
[1739209014527,3.74029,2673.6,2673.1,3.8185474]
[1739209014905,3.0,2673.7,2673.2,3.74075]
[1739209015112,3.73976,2674.0,2673.2,0.7866]
[1739209015426,0.8196,2674.5,2673.3,0.07737824]
[1739209015591,3.0,2674.2,2673.3,0.07737824]
[1739209015796,3.74009,2673.8,2673.3,0.07737824]
[1739209015997,3.0,2673.9,2673.2,4.52742]
[1739209016212,3.0,2673.9,2673.5,3.74033]
[1739209016428,3.0,2673.9,2673.4,3.74051]
[1739209016609,3.0,2673.9,2673.6,0.07701957]
[1739209016804,3.0,2673.9,2673.4,3.74047]
[1739209017124,3.73976,2674.0,2673.5,3.81752912]
[1739209017496,3.73976,2674.0,2673.5,0.07713912]
[1739209018106,3.73933,2674.3,2673.5,0.07713912]
[1739209018432,3.74023,2673.7,2673.2,4.52739]
[1739209018593,3.74001,2673.8,2673.6,0.07719354]
[1739209018802,3.74001,2673.8,2673.2,8.2681]
[1739209019004,3.74014,2673.7,2673.3,0.07755221]
[1739209019206,3.74001,2673.8,2673.2,8.26809]
[1739209019407,3.74001,2673.8,2673.3,0.07755221]
[1739209019610,3.74001,2673.8,2673.2,4.52734]
[1739209019804,3.74001,2673.8,2673.3,0.07755221]
[1739209020006,3.74036,2673.6,2673.0,8.75]
[1739209020335,3.74036,2673.6,2672.5,8.00276836]
[1739209020336,3.74082,2673.3,2673.1,0.07779136]
[1739209020736,3.74082,2673.3,2672.7,3.74151]
[1739209020903,3.74082,2673.3,2673.2,0.07767178]
[1739209021104,3.74082,2673.3,2672.8,3.74137]
[1739209021302,3.74082,2673.3,2673.2,0.07767178]
[1739209021507,3.74132,2672.9,2672.6,0.7866]
[1739209021723,3.74106,2673.1,2672.6,0.7866]
[1739209021931,3.0,2673.0,2672.7,0.07826979]
[1739209022131,3.74134,2672.9,2672.7,0.07826979]
[1739209022736,3.0,2673.0,2672.7,0.07826979]
[1739209023641,3.74041,2673.5,2672.8,3.74139]
[1739209023949,3.74022,2673.7,2672.8,0.8054]
[1739209024146,4.55437,2674.1,2673.2,3.74083]
[1739209024348,3.74009,2673.8,2673.3,3.74061]
[1739209024649,4.55437,2674.1,2673.5,3.74033]
[1739209024846,4.55437,2674.1,2673.3,0.07828427]
[1739209024847,3.73936,2674.3,2673.8,4.54531]
[1739209025147,3.73911,2674.5,2673.9,3.73984]
[1739209025349,3.73911,2674.5,2673.9,0.0774371]
[1739209025508,3.73919,2674.4,2673.9,3.8172571]
[1739209025934,3.73919,2674.4,2673.9,0.0774371]
[1739209026139,3.7394,2674.3,2673.9,0.0774371]
[1739209026538,0.8147,2674.3,2673.9,0.0774371]
[1739209026747,3.73971,2674.0,2673.9,0.0774371]
[1739209027047,3.73971,2674.0,2673.9,0.07731243]
[1739209027345,3.73945,2674.2,2673.9,0.07731243]
[1739209027650,3.73945,2674.2,2674.0,0.07719292]
[1739209028177,3.73945,2674.2,2673.6,7.48031]
[1739209028377,3.73945,2674.2,2674.1,0.07707342]
[1739209028857,3.73961,2674.1,2673.5,4.54572]
[1739209029060,3.73918,2674.4,2674.1,0.07707342]
[1739209029271,0.8147,2674.6,2673.6,9.5554]
[1739209029577,3.73869,2674.8,2674.3,3.73918]
[1739209029960,3.73869,2674.8,2674.4,0.07663443]
[1739209030158,3.73853,2674.9,2674.4,3.81568443]
[1739209030363,3.73693,2676.0,2674.5,3.73901]
[1739209030364,3.73812,2675.2,2674.5,3.73901]
[1739209030681,0.8147,2675.3,2674.6,0.8817955]
[1739209030861,3.73834,2675.0,2674.6,0.8817955]
[1739209031056,3.73819,2675.1,2674.6,0.8817955]
[1739209031284,6.73819,2675.1,2674.6,0.8817955]
[1739209031448,3.73834,2675.0,2674.6,0.8817955]
[1739209032308,3.73803,2675.2,2674.6,0.8817955]
[1739209032451,3.73803,2675.2,2674.7,3.73864]
[1739209032778,3.73715,2675.9,2675.4,0.8054]
[1739209032984,3.0,2675.8,2675.4,0.8054]
[1739209033182,3.73735,2675.7,2675.5,0.0751157]
[1739209033684,3.73713,2675.9,2675.5,0.0751157]
[1739209033685,3.0,2675.8,2675.5,0.0751157]
[1739209033984,3.73708,2675.9,2675.5,0.0751157]
[1739209034285,3.0,2676.0,2675.5,0.0751157]
[1739209034486,3.0,2676.0,2675.6,3.73745]
[1739209034646,3.73654,2676.3,2675.7,3.73732]
[1739209034847,3.73665,2676.2,2675.7,3.81204389]
[1739209035049,3.73693,2676.0,2675.7,0.07472389]
[1739209035384,3.7372,2675.8,2675.7,0.07472389]
[1739209035612,3.7372,2675.8,2675.5,8.75]
[1739209035814,3.73734,2675.7,2675.6,0.07484325]
[1739209036217,0.7988,2675.7,2674.7,4.49453]
[1739209036522,3.73791,2675.3,2674.8,0.07571027]
[1739209036923,3.73791,2675.3,2674.8,3.73858]
[1739209037128,4.53619,2675.7,2674.9,3.81406237]
[1739209037326,3.73777,2675.4,2674.9,0.07570237]
[1739209037623,6.73831,2675.0,2674.2,4.49523]
[1739209037795,3.7387,2674.8,2674.2,4.49523]
[1739209038121,3.7389,2674.6,2674.2,0.7559]
[1739209038319,3.73866,2674.8,2674.2,0.7559]
[1739209038523,3.73866,2674.8,2674.3,0.07353439]
[1739209038919,3.0,2674.7,2674.2,4.49528]
[1739209039123,3.73837,2675.0,2674.4,3.81255491]
[1739209039301,3.73846,2674.9,2674.4,3.73914]
[1739209039489,0.7988,2675.2,2674.5,0.07329545]
[1739209039687,3.73857,2674.9,2674.5,0.07329545]
[1739209040012,6.73868,2674.8,2674.6,0.07317599]